bitfinex/quotes_BTCUSD_20210101
["timestamp","ask_amount","ask_price","bid_price","bid_amount"]
[1609497831902,0.38269426,29254.0,29253.0,0.30099366]
[1609497832203,0.71449728,29254.0,29253.0,0.30099366]
[1609497832401,0.80166581,29254.0,29253.0,0.30099366]
[1609497833230,0.46986279,29254.0,29253.0,0.30099366]
[1609497833429,0.56986279,29254.0,29253.0,0.30099366]
[1609497834033,0.90166581,29254.0,29253.0,0.30099366]
[1609497835138,0.46986279,29254.0,29253.0,0.30099366]
[1609497835337,0.56986279,29254.0,29253.0,0.30099366]
[1609497835738,0.46986279,29254.0,29253.0,0.30099366]
[1609497835941,0.56986279,29254.0,29253.0,0.30099366]
[1609497836540,2.06986279,29254.0,29253.0,0.30099366]
[1609497836742,2.33486279,29254.0,29253.0,0.30099366]
[1609497837643,2.66666581,29254.0,29253.0,0.30099366]
[1609497838455,1.16666581,29254.0,29253.0,0.30099366]
[1609497839456,2.16666581,29254.0,29253.0,0.30099366]
[1609497840559,1.16666581,29254.0,29253.0,0.30099366]
[1609497841161,1.24666581,29254.0,29253.0,0.30099366]
[1609497841361,1.48593581,29254.0,29253.0,0.30099366]
[1609497841561,6.08593581,29254.0,29253.0,0.30099366]
[1609497842059,1.48593581,29254.0,29253.0,0.30099366]
[1609497842461,3.73593581,29254.0,29253.0,0.30099366]
[1609497844932,1.48593581,29254.0,29253.0,0.30099366]
[1609497846334,3.68593581,29254.0,29253.0,0.30099366]
[1609497848470,1.48593581,29254.0,29253.0,0.30099366]
[1609497849370,2.58593581,29254.0,29253.0,0.30099366]
[1609497849872,1.48593581,29254.0,29253.0,0.30099366]
[1609497850071,1.24666581,29254.0,29253.0,0.30099366]
[1609497850772,1.14666581,29254.0,29253.0,0.30099366]
[1609497851269,1.24666581,29254.0,29253.0,0.30099366]
[1609497853403,2.14666581,29254.0,29253.0,0.30099366]
[1609497853604,1.24666581,29254.0,29253.0,0.30099366]
[1609497855705,0.77666581,29254.0,29253.0,0.30099366]
[1609497858555,0.67666581,29254.0,29253.0,0.30099366]
[1609497858855,0.66676126,29254.0,29253.0,0.30099366]
[1609497859054,0.66478035,29254.0,29253.0,0.30099366]
[1609497859452,0.66438419,29254.0,29253.0,0.30099366]
[1609497859855,1.86438419,29254.0,29253.0,0.30049366]
[1609497860056,0.66438419,29254.0,29253.0,0.30049366]
[1609497860456,0.63705221,29254.0,29253.0,0.30049366]
[1609497862558,0.55705221,29254.0,29253.0,0.30049366]
[1609497868612,0.55705221,29254.0,29253.0,0.3]
[1609497871318,2.60705221,29254.0,29253.0,0.20049367]
[1609497871517,0.55705221,29254.0,29253.0,0.20049367]
[1609497872522,0.65705221,29254.0,29253.0,0.20049367]
[1609497873501,1.65705221,29254.0,29253.0,0.20049367]
[1609497873895,1.32524919,29254.0,29253.0,0.20049367]
[1609497874994,1.40524919,29254.0,29253.0,0.20049367]
[1609497876701,1.48607564,29254.0,29253.0,0.20049367]
[1609497876900,1.78607564,29254.0,29253.0,0.20049367]
[1609497877503,1.60524919,29254.0,29253.0,0.20049367]
[1609497877700,1.30524919,29254.0,29253.0,0.20049367]
[1609497877901,1.48607564,29254.0,29253.0,0.20049367]
[1609497878203,3.13607564,29254.0,29253.0,0.20049367]
[1609497879200,1.48607564,29254.0,29253.0,0.20049367]
[1609497879738,1.30524919,29254.0,29253.0,0.20049367]
[1609497880140,2.00524919,29254.0,29253.0,0.20049367]
[1609497880343,1.30524919,29254.0,29253.0,0.20049367]
[1609497880742,1.63705221,29254.0,29253.0,0.20049367]
[1609497880944,1.81787866,29254.0,29253.0,0.20049367]
[1609497881142,2.96287866,29254.0,29253.0,0.20049367]
[1609497881343,2.16287866,29254.0,29253.0,0.20049367]
[1609497881645,1.48607564,29254.0,29253.0,0.20049367]
[1609497882141,2.38607564,29254.0,29253.0,0.20049367]
[1609497882742,2.55607564,29254.0,29253.0,0.20049367]
[1609497883558,1.65607564,29254.0,29253.0,0.20049367]
[1609497883760,1.47524919,29254.0,29253.0,0.20049367]
[1609497883963,1.80705221,29254.0,29253.0,0.20049367]
[1609497884361,1.98787866,29254.0,29253.0,0.20049367]
[1609497884562,1.79607564,29254.0,29253.0,0.20049367]
[1609497884963,2.69607564,29254.0,29253.0,0.20049367]
[1609497886263,1.61524919,29254.0,29253.0,0.20049367]
[1609497886462,1.48607564,29254.0,29253.0,0.20049367]
[1609497886961,5.48607564,29254.0,29253.0,0.20049367]
[1609497887564,1.48607564,29254.0,29253.0,0.20049367]
[1609497888042,3.53607564,29254.0,29253.0,0.20049367]
[1609497888245,1.48607564,29254.0,29253.0,0.20049367]
[1609497888445,1.60524919,29254.0,29253.0,0.20049367]
[1609497889044,2.53607564,29254.0,29253.0,0.20049367]
[1609497890770,2.35524919,29254.0,29253.0,0.20049367]
[1609497891030,3.43607564,29254.0,29253.0,0.20049367]
[1609497891573,1.60524919,29254.0,29253.0,0.20049367]
[1609497891778,1.52524919,29254.0,29253.0,0.20049367]
[1609497891975,1.62524919,29254.0,29253.0,0.20049367]
[1609497892675,1.95705221,29254.0,29253.0,0.20049367]
[1609497892896,1.32524919,29254.0,29253.0,0.20049367]
[1609497897597,1.60024919,29254.0,29253.0,0.20049367]
[1609497898399,1.50024919,29254.0,29253.0,0.20049367]
[1609497899324,1.22524919,29254.0,29253.0,0.20049367]
[1609497900828,1.22524919,29254.0,29253.0,1.20000367]
[1609497901029,1.0,29254.0,29253.0,1.65781367]
[1609497901236,0.40927842,29255.0,29253.0,2.24128179]
[1609497901437,1.0,29265.0,29260.0,0.99951]
[1609497901629,1.0,29265.0,29261.0,0.19245]
[1609497901832,1.0,29265.0,29264.0,0.17258312]
[1609497902135,0.673,29274.0,29266.0,0.1391]
[1609497902431,0.4669,29275.0,29266.0,1.17207812]
[1609497902633,0.2631,29277.0,29267.0,1.37712]
[1609497902891,0.2631,29277.0,29268.0,1.50643272]
[1609497903088,0.2631,29277.0,29270.0,0.139066]
[1609497903289,0.2631,29277.0,29271.0,1.3338866]
[1609497903487,0.2631,29277.0,29274.0,0.29973]
[1609497903690,0.2631,29277.0,29276.0,0.13903]
[1609497904085,0.2631,29277.0,29276.0,0.18057601]
[1609497907518,2.377544,29277.0,29276.0,0.04154601]
[1609497907709,3.327544,29277.0,29276.0,0.04154601]
[1609497907921,2.732544,29277.0,29276.0,0.04154601]
[1609497908629,2.732544,29277.0,29273.0,0.32405528]
[1609497908925,0.769444,29276.0,29273.0,0.32405528]
[1609497909224,0.364444,29276.0,29273.0,0.32405528]
[1609497909421,0.364444,29276.0,29272.0,0.32417505]
[1609497909821,0.54527045,29276.0,29272.0,0.32417505]
[1609497910022,0.364444,29276.0,29272.0,0.32417505]
[1609497910221,0.364444,29276.0,29271.0,0.32409337]
[1609497911023,0.364444,29276.0,29275.0,0.12146127]
[1609497911226,1.364444,29276.0,29275.0,0.12146127]
[1609497911722,2.064444,29276.0,29275.0,0.12146127]
[1609497911926,1.364444,29276.0,29275.0,0.12146127]
[1609497913127,1.364444,29276.0,29274.0,0.12143702]
[1609497913860,1.364444,29276.0,29275.0,0.04145454]
[1609497915356,1.364444,29276.0,29273.0,0.04145451]
[1609497915958,1.364444,29276.0,29275.0,0.0414546]
[1609497916154,1.804444,29276.0,29275.0,0.0414546]
[1609497916557,1.604444,29276.0,29270.0,1.0]
[1609497917458,1.364444,29276.0,29271.0,0.04145502]
[1609497917661,1.364444,29276.0,29272.0,1.0]
[1609497918426,0.364444,29275.0,29272.0,1.0]
[1609497918622,0.2,29274.0,29273.0,0.04145498]
[1609497918922,0.2,29274.0,29273.0,1.04145498]
[1609497919740,1.0,29275.0,29273.0,1.04145498]
[1609497919940,0.364444,29274.0,29273.0,1.04145498]
[1609497921243,0.2,29276.0,29273.0,0.04145498]
[1609497921445,0.364418,29276.0,29273.0,0.04145498]
[1609497921646,0.364418,29276.0,29270.0,0.12110997]
[1609497921944,0.2631,29277.0,29270.0,0.12110997]
[1609497922345,0.2,29278.0,29277.0,0.5369]
[1609497922650,0.364418,29278.0,29277.0,0.5369]
[1609497923068,0.364418,29278.0,29277.0,0.57835475]
[1609497923468,0.364404,29279.0,29278.0,0.635582]
[1609497924971,0.364404,29279.0,29278.0,0.67703675]
[1609497925568,1.214404,29279.0,29278.0,0.67703675]
[1609497925870,0.614404,29279.0,29278.0,0.67703675]
[1609497926072,0.364404,29279.0,29278.0,0.67703675]
[1609497927472,0.364404,29279.0,29278.0,0.79835932]
[1609497927473,3.114404,29279.0,29278.0,0.79835932]
[1609497927672,2.67734109,29279.0,29278.0,0.67703675]
[1609497928272,2.75734109,29279.0,29278.0,0.67703675]
[1609497928471,1.539399,29279.0,29278.0,0.67703675]
[1609497928993,1.98747741,29279.0,29278.0,0.67703675]
[1609497929792,1.03747741,29279.0,29278.0,0.67703675]
[1609497930390,2.08747741,29279.0,29278.0,0.67703675]
[1609497930592,1.03747741,29279.0,29278.0,0.67703675]
[1609497931595,6.68747741,29279.0,29278.0,0.67703675]
[1609497932094,6.68747741,29279.0,29278.0,1.00258952]
[1609497932797,6.68747741,29279.0,29278.0,0.67703675]
[1609497937867,6.68747741,29279.0,29278.0,0.79906766]
[1609497939089,1.03747741,29279.0,29278.0,0.79906766]
[1609497939288,4.53747741,29279.0,29278.0,0.79906766]
[1609497940388,6.68747741,29279.0,29278.0,0.79906766]
[1609497942293,5.28747741,29279.0,29278.0,0.79906766]
[1609497943612,4.53747741,29279.0,29278.0,0.79906766]
[1609497944311,5.28747741,29279.0,29278.0,0.79906766]
[1609497944714,4.53747741,29279.0,29278.0,0.79906766]
[1609497945517,6.53747741,29279.0,29278.0,0.79906766]
[1609497945917,4.53747741,29279.0,29278.0,0.79906766]
[1609497946119,4.53747741,29279.0,29278.0,0.67703675]
[1609497946718,4.53747741,29279.0,29278.0,0.67753]
[1609497947216,6.68747741,29279.0,29278.0,0.67753]
[1609497947522,8.18747741,29279.0,29278.0,1.000008]
[1609497948020,9.18747741,29279.0,29278.0,1.000008]
[1609497948913,9.18747741,29279.0,29278.0,8e-06]
[1609497949725,9.18747741,29279.0,29273.0,0.12224338]
[1609497949929,5.799016,29274.0,29273.0,0.12224338]
[1609497950127,8.52984245,29274.0,29273.0,0.12224338]
[1609497950328,8.52984245,29274.0,29272.0,1.12232088]
[1609497950529,7.34901129,29273.0,29272.0,1.12232088]
[1609497950727,8.51720827,29273.0,29272.0,1.12232088]
[1609497950929,9.59720827,29273.0,29272.0,1.12232088]
[1609497952931,9.59720827,29273.0,29272.0,0.995]
[1609497954955,9.70050034,29273.0,29272.0,0.995]
[1609497955159,9.59720827,29273.0,29272.0,0.995]
[1609497956355,9.69819414,29273.0,29272.0,0.995]
[1609497956555,9.59720827,29273.0,29272.0,0.995]
[1609497957558,9.69836939,29273.0,29272.0,0.995]
[1609497957860,0.33180302,29272.0,29267.0,0.1224919]
[1609497958062,5.799016,29268.0,29267.0,0.1224919]
[1609497958261,5.97984245,29268.0,29267.0,0.1224919]
[1609497958457,6.31164547,29268.0,29267.0,0.1224919]
[1609497958678,6.98664547,29268.0,29266.0,0.12257199]
[1609497958880,6.06180302,29267.0,29266.0,1.12257199]
[1609497959077,6.094399,29267.0,29266.0,1.12257199]
[1609497959379,6.769399,29267.0,29266.0,1.12257199]
[1609497959576,6.769399,29267.0,29266.0,1.0]
[1609497960584,8.269399,29267.0,29266.0,1.12258059]
[1609497961184,9.269399,29267.0,29266.0,1.0]
[1609497961485,0.364399,29259.0,29251.0,0.0043]
[1609497961685,0.149016,29255.0,29251.0,0.0043]
[1609497961883,3.94522545,29254.0,29251.0,0.0043]
[1609497962079,4.68526545,29254.0,29251.0,0.0043]
[1609497962283,5.68526545,29254.0,29251.0,0.0043]
[1609497962582,5.76526545,29254.0,29251.0,0.0043]
[1609497964040,7.36526545,29254.0,29251.0,0.0043]
[1609497964237,5.76526545,29254.0,29251.0,0.0043]
[1609497964638,5.76526545,29254.0,29251.0,0.12715237]
[1609497965341,5.76526545,29254.0,29251.0,0.0043]
[1609497966143,6.76526545,29254.0,29251.0,0.0043]
[1609497966341,5.76526545,29254.0,29251.0,0.0043]
[1609497968350,5.589439,29254.0,29251.0,0.0043]
[1609497968651,5.464399,29254.0,29251.0,0.0043]
[1609497969146,5.459399,29254.0,29251.0,0.0043]
[1609497969956,5.63522545,29254.0,29251.0,0.0043]
[1609497970156,4.459399,29254.0,29251.0,0.0043]
[1609497970459,4.74955545,29254.0,29251.0,0.0043]
[1609497971159,6.59955545,29254.0,29251.0,0.0043]
[1609497971361,5.573729,29254.0,29251.0,0.0043]
[1609497971560,5.74955545,29254.0,29251.0,0.0043]
[1609497971956,5.573729,29254.0,29251.0,0.0043]
[1609497972157,5.459399,29254.0,29251.0,0.0043]
[1609497972361,1.059399,29254.0,29253.0,1.19951]
[1609497972568,0.359399,29254.0,29253.0,1.39951]
[1609497972763,0.7798,29260.0,29253.0,2.79759212]
[1609497973063,0.364614,29259.0,29254.0,1.19951]
[1609497973265,0.2808,29260.0,29255.0,1.96759212]
[1609497973463,0.2808,29260.0,29256.0,1.19951]
[1609497973665,0.364614,29259.0,29257.0,1.19951]
[1609497973864,0.444614,29259.0,29258.0,1.0]
[1609497974261,0.364614,29259.0,29258.0,1.0]
[1609497975462,0.359614,29259.0,29258.0,1.0]
[1609497975684,0.359614,29259.0,29258.0,1.195]
[1609497976389,0.359614,29259.0,29258.0,1.12203559]
[1609497977892,0.439614,29259.0,29258.0,1.04156499]
[1609497978995,2.189614,29259.0,29258.0,1.04156499]
[1609497979388,0.439614,29259.0,29258.0,1.04156499]
[1609497980093,0.439614,29259.0,29258.0,2.04107499]
[1609497980293,0.439614,29259.0,29258.0,1.04156499]
[1609497980695,0.439614,29259.0,29258.0,2.04107499]
[1609497980897,0.08,29259.0,29258.0,2.57607499]
[1609497981095,0.08,29259.0,29258.0,2.94064499]
[1609497981296,1.0613,29259.0,29258.0,1.94064499]
[1609497981497,1.0613,29259.0,29258.0,1.57607499]
[1609497981797,1.0576,29259.0,29258.0,1.57607499]
[1609497981995,1.42137,29259.0,29258.0,1.37607499]
[1609497982196,1.42137,29259.0,29258.0,1.57607499]
[1609497982403,0.44457,29259.0,29257.0,0.2]
[1609497982602,0.4857,29264.0,29253.0,0.2]
[1609497982603,0.119879,29258.0,29256.0,0.2]
[1609497982801,0.08,29263.0,29254.0,0.59803812]
[1609497983004,0.36457,29262.0,29254.0,0.23346812]
[1609497983216,0.44457,29262.0,29253.0,0.4]
[1609497983616,0.44457,29262.0,29253.0,0.2]
[1609497983914,0.44457,29262.0,29253.0,0.4]
[1609497985816,0.44457,29262.0,29253.0,0.2]
[1609497986014,0.44457,29262.0,29253.0,0.23346812]
[1609497986015,0.36457,29262.0,29253.0,0.23346812]
[1609497986914,0.36457,29262.0,29253.0,0.2]
[1609497986915,0.54039645,29262.0,29253.0,0.2]
[1609497987516,1.0,29258.0,29253.0,0.2]
[1609497987715,0.119879,29257.0,29253.0,0.2]
[1609497987917,0.107679,29257.0,29253.0,0.2]
[1609497988115,0.105179,29257.0,29253.0,0.2]
[1609497988315,1.0,29258.0,29253.0,0.2]
[1609497989344,1.0,29258.0,29254.0,0.364601]
[1609497989543,1.0,29258.0,29254.0,0.516841]
[1609497989741,1.0,29258.0,29255.0,0.17346812]
[1609497989942,1.0,29258.0,29256.0,0.564601]
[1609497990247,1.0,29258.0,29257.0,0.59806912]
[1609497990542,0.80954976,29258.0,29257.0,0.59806912]
[1609497991146,0.80954976,29258.0,29257.0,1.59806912]
[1609497991442,9.76e-06,29258.0,29257.0,1.85806912]
[1609497991644,1.9689,29273.0,29257.0,1.85806912]
[1609497991951,1.9689,29273.0,29259.0,0.59806912]
[1609497991952,0.6543,29273.0,29259.0,0.59806912]
[1609497992247,0.6543,29273.0,29261.0,0.564601]
[1609497992443,0.6543,29273.0,29262.0,0.8296299]
[1609497992750,0.2631,29274.0,29270.0,0.277268]
[1609497993114,0.2631,29274.0,29271.0,0.364601]
[1609497993410,0.2631,29274.0,29271.0,0.1218717]
[1609497994111,0.364601,29273.0,29271.0,0.1218717]
[1609497994313,5.835143,29272.0,29271.0,0.1218717]
[1609497994520,7.46906801,29272.0,29271.0,0.1218717]
[1609497995017,7.36906801,29272.0,29268.0,0.12195047]
[1609497995215,3.864601,29269.0,29268.0,0.12195047]
[1609497995421,4.79542745,29269.0,29266.0,0.12208325]
[1609497995618,1.514469,29267.0,29266.0,0.12208325]
[1609497995822,0.33180302,29266.0,29255.0,0.6943]
[1609497996022,0.33180302,29266.0,29256.0,0.364469]
[1609497996225,0.4695,29268.0,29256.0,0.364469]
[1609497996420,0.4695,29268.0,29256.0,0.564469]
[1609497996725,0.364469,29267.0,29266.0,0.12214003]
[1609497996923,0.444469,29267.0,29266.0,0.12214003]
[1609497997321,0.54029545,29267.0,29266.0,0.12214003]
[1609497997824,0.17582645,29267.0,29255.0,0.364469]
[1609497998021,0.17582645,29267.0,29256.0,0.17]
[1609497998253,0.17582645,29267.0,29257.0,0.364469]
[1609497998854,0.17582645,29267.0,29256.0,0.17]
[1609497999255,0.08,29268.0,29256.0,0.17]
[1609498000161,0.54029545,29267.0,29257.0,1.0]
[1609498000356,0.54029545,29267.0,29257.0,1.145]
[1609498000563,0.08,29266.0,29257.0,1.0]
[1609498000862,0.364469,29265.0,29257.0,1.0]
[1609498001060,0.29,29264.0,29257.0,1.0]
[1609498001357,0.364469,29263.0,29257.0,1.0]
[1609498001659,0.364469,29261.0,29257.0,1.0]
[1609498002054,0.444469,29261.0,29257.0,1.0]
[1609498002557,1.444469,29261.0,29257.0,1.0]
[1609498002758,0.444469,29261.0,29253.0,0.2]
[1609498003159,0.62029545,29261.0,29253.0,0.2]
[1609498003658,0.85547545,29261.0,29253.0,0.2]
[1609498004480,0.33180302,29260.0,29253.0,0.2]
[1609498004679,0.539469,29259.0,29253.0,0.2]
[1609498005578,0.08,29258.0,29254.0,0.04156071]
[1609498005784,0.264469,29257.0,29254.0,0.04156071]
[1609498005980,0.25582645,29258.0,29254.0,0.04156071]
[1609498006185,0.08,29257.0,29254.0,0.04156071]
[1609498006582,0.14291,29258.0,29254.0,0.04156071]
[1609498006782,1.215,29257.0,29254.0,0.04156071]
[1609498008153,0.06943288,29256.0,29254.0,0.04156071]
[1609498008444,0.06731917,29256.0,29254.0,0.04156071]
[1609498008951,0.06689637,29256.0,29254.0,0.04156071]
[1609498009244,0.06689637,29256.0,29254.0,0.03935038]
[1609498009445,0.06689637,29256.0,29255.0,0.04156268]
[1609498009846,0.06689637,29256.0,29254.0,0.0415625]
[1609498010047,0.06689637,29256.0,29255.0,1.0]
[1609498010254,0.06689637,29256.0,29255.0,1.2]
[1609498010463,0.81171937,29257.0,29255.0,2.03152875]
[1609498010658,0.64445279,29257.0,29256.0,0.564657]
[1609498010850,1.0,29267.0,29256.0,1.04312512]
[1609498011053,1.0,29267.0,29257.0,1.56718461]
[1609498011250,1.0,29267.0,29258.0,0.59812512]
[1609498011453,1.0,29267.0,29259.0,0.49]
[1609498011649,1.0,29267.0,29259.0,0.53155679]
[1609498012058,0.33663137,29266.0,29260.0,1.24155627]
[1609498012251,0.33663137,29266.0,29260.0,1.1450406]
[1609498012857,0.33663137,29266.0,29261.0,0.04155634]
[1609498013056,0.33663137,29266.0,29263.0,1.0]
[1609498014152,0.06689637,29266.0,29264.0,0.0415555]
[1609498014354,1.60556145,29265.0,29264.0,0.0415555]
[1609498014555,1.429735,29265.0,29264.0,0.0415555]
[1609498015370,1.60556145,29265.0,29264.0,0.0415555]
[1609498016275,1.60556145,29265.0,29255.0,0.04155708]
[1609498016276,0.33180302,29264.0,29255.0,0.04155708]
[1609498016474,1.60556145,29265.0,29256.0,1.0]
[1609498016475,1.0,29262.0,29256.0,1.0]
[1609498016667,0.269735,29261.0,29256.0,1.0]
[1609498017170,0.269735,29261.0,29257.0,0.04155955]
[1609498018173,0.06689637,29260.0,29257.0,0.04155955]
[1609498018373,0.9862,29258.0,29257.0,0.04155955]
[1609498018574,1.255935,29258.0,29257.0,0.04155955]
[1609498018809,1.44816541,29258.0,29257.0,0.04155955]
[1609498019172,1.44761139,29258.0,29254.0,0.0415577]
[1609498019372,0.98287639,29258.0,29254.0,0.0415577]
[1609498019576,0.98287639,29258.0,29257.0,0.04155709]
[1609498019773,2.86950776,29258.0,29257.0,0.04155709]
[1609498020080,3.04533421,29258.0,29254.0,0.04155895]
[1609498020282,0.60153802,29257.0,29253.0,0.2]
[1609498020570,0.269735,29256.0,29254.0,1.0]
[1609498020816,1.481515,29256.0,29254.0,1.04155935]
[1609498021015,0.269735,29255.0,29254.0,0.04155935]
[1609498021217,0.57663137,29255.0,29253.0,0.2]
[1609498021914,0.57663137,29255.0,29254.0,0.04156066]
[1609498022416,2.35843439,29255.0,29254.0,0.04156066]
[1609498024387,3.15843439,29255.0,29254.0,0.04156066]
[1609498024895,2.35843439,29255.0,29254.0,0.04156066]
[1609498025296,2.35843439,29255.0,29253.0,0.2]
[1609498025502,4.41153802,29254.0,29253.0,0.2]
[1609498025699,4.14663137,29254.0,29253.0,0.2]
[1609498025899,4.14663137,29254.0,29253.0,0.2415644]
[1609498026200,4.14663137,29254.0,29253.0,0.2]
[1609498026698,4.14663137,29254.0,29253.0,0.24156485]
[1609498028324,4.14663137,29254.0,29253.0,0.2350959]
[1609498029930,4.14663137,29254.0,29253.0,0.56265976]
[1609498030326,1.74663137,29254.0,29253.0,0.56265976]
[1609498030528,1.74663137,29254.0,29253.0,0.52109491]
[1609498030927,2.70555638,29254.0,29253.0,0.52109491]
[1609498031440,9.3373594,29254.0,29253.0,0.2350997]
[1609498033231,4.5373594,29254.0,29253.0,0.2350997]
[1609498033731,4.20555638,29254.0,29253.0,0.2350997]
[1609498034356,6.55555638,29254.0,29253.0,0.2350997]
[1609498035359,7.85555638,29254.0,29253.0,0.2350997]
[1609498035559,6.55555638,29254.0,29253.0,0.2350997]
[1609498037259,4.20555638,29254.0,29253.0,0.2350997]
[1609498037460,6.50555638,29254.0,29253.0,0.2346097]
[1609498037961,6.50555638,29254.0,29253.0,0.2329297]
[1609498038219,8.35555638,29254.0,29253.0,0.2329297]
[1609498038424,6.50555638,29254.0,29253.0,0.2329297]
[1609498040851,6.60555638,29254.0,29253.0,0.2329297]
[1609498041250,8.60555638,29254.0,29253.0,0.2329297]
[1609498041686,6.60555638,29254.0,29253.0,0.2329297]
[1609498043287,7.35555638,29254.0,29253.0,0.2329297]
[1609498043694,6.60555638,29254.0,29253.0,0.2329297]
[1609498044894,4.30555638,29254.0,29253.0,0.2329297]
[1609498045091,5.50555638,29254.0,29253.0,0.2329297]
[1609498045291,4.30555638,29254.0,29253.0,0.2329297]
[1609498046195,5.19663137,29254.0,29253.0,0.2329297]
[1609498046393,8.14663137,29254.0,29253.0,0.20592125]
[1609498046594,7.60555638,29254.0,29253.0,0.20592125]
[1609498046795,7.9373594,29254.0,29253.0,0.20592125]
[1609498047215,9.4373594,29254.0,29253.0,0.20592125]
[1609498047816,9.3373594,29254.0,29253.0,0.20592125]
[1609498048719,8.37843439,29254.0,29253.0,0.20592125]
[1609498048926,6.65,29253.0,29244.0,0.05206923]
[1609498049225,6.65,29253.0,29244.0,0.02206923]
[1609498049226,0.81642645,29248.0,29244.0,0.02206923]
[1609498049423,5.369735,29245.0,29244.0,0.02206923]
[1609498049624,5.63180302,29244.0,29235.0,0.0008]
[1609498049924,5.90153802,29244.0,29235.0,0.0008]
[1609498050781,5.96843439,29244.0,29235.0,0.0008]
[1609498051022,6.64343439,29244.0,29235.0,0.0008]
[1609498051625,6.85200439,29244.0,29235.0,0.0008]
[1609498053254,1.55200439,29244.0,29235.0,0.0008]
[1609498053452,1.34343439,29244.0,29235.0,0.0008]
[1609498053655,1.27653802,29244.0,29235.0,0.01390363]
[1609498053857,1.27653802,29244.0,29235.0,0.0008]
[1609498054055,3.37653802,29244.0,29235.0,0.0008]
[1609498054256,3.44343439,29244.0,29235.0,0.0008]
[1609498056065,1.34343439,29244.0,29235.0,0.0008]
[1609498056265,1.27653802,29244.0,29235.0,0.0008]
[1609498057570,1.59387439,29244.0,29243.0,0.0002]
[1609498057971,5.94387439,29244.0,29243.0,0.0002]
[1609498058384,5.84887439,29244.0,29243.0,0.0002]
[1609498058684,5.78197802,29244.0,29243.0,0.0002]
[1609498058993,6.68180302,29243.0,29236.0,0.0002]
[1609498059191,1.0,29240.0,29236.0,0.0002]
[1609498059385,0.269735,29239.0,29236.0,0.0002]
[1609498059587,0.33180302,29238.0,29236.0,0.0002]
[1609498059787,0.269735,29237.0,29236.0,0.0002]
[1609498060186,1.256435,29237.0,29236.0,0.0002]
[1609498060391,1.241435,29237.0,29236.0,0.0002]
[1609498060691,1.238735,29237.0,29236.0,0.0002]
[1609498060990,1.238235,29237.0,29236.0,0.8002]
[1609498061391,0.9818,29237.0,29236.0,0.8002]
[1609498061891,1.238205,29237.0,29236.0,0.0002]
[1609498063089,0.9818,29237.0,29236.0,0.0002]
[1609498063289,0.9818,29237.0,29236.0,0.365052]
[1609498063595,1.238205,29237.0,29236.0,0.49471899]
[1609498063796,1.383205,29237.0,29236.0,0.49471899]
[1609498064022,3.133205,29237.0,29236.0,0.49471899]
[1609498064223,1.383205,29237.0,29236.0,0.49471899]
[1609498064419,1.528205,29237.0,29236.0,0.49471899]
[1609498064823,1.528205,29237.0,29236.0,0.0002]
[1609498066126,1.383205,29237.0,29236.0,0.0002]
[1609498069407,1.383205,29237.0,29235.0,0.0008]
[1609498069408,1.15,29236.0,29232.0,0.32763892]
[1609498069626,1.0,29233.0,29232.0,0.32763892]
[1609498069825,1.256405,29233.0,29232.0,0.32763892]
[1609498070028,1.256405,29233.0,29224.0,0.2826]
[1609498070328,0.256405,29232.0,29227.0,0.001]
[1609498071457,0.440655,29232.0,29227.0,0.001]
[1609498071931,0.77245802,29232.0,29230.0,0.0006]
[1609498072926,0.440655,29232.0,29230.0,0.0006]
[1609498073125,0.580655,29232.0,29230.0,0.0006]
[1609498074354,0.440655,29232.0,29230.0,0.0006]
[1609498074852,0.256405,29232.0,29230.0,0.0006]
[1609498076653,5.65,29231.0,29230.0,0.0004]
[1609498076858,6.49010439,29231.0,29230.0,0.0004]
[1609498078353,7.4490294,29231.0,29230.0,0.0004]
[1609498079367,6.49010439,29231.0,29230.0,0.0004]
[1609498086751,7.4490294,29231.0,29230.0,0.0004]
[1609498087453,7.7540294,29231.0,29230.0,0.0004]
[1609498088397,6.94072803,29230.0,29208.0,0.30135134]
[1609498088592,1.0,29225.0,29208.0,0.30135134]
[1609498088795,4.56981802,29224.0,29208.0,0.30135134]
[1609498088995,4.56981802,29224.0,29208.0,0.26788322]
[1609498089194,1.01981802,29224.0,29208.0,0.26788322]
[1609498089397,1.01981802,29224.0,29208.0,0.0008]
[1609498089398,1.08671439,29224.0,29208.0,0.0008]
[1609498089593,1.08671439,29224.0,29210.0,0.00106423]
[1609498090696,2.08671439,29224.0,29210.0,0.00106423]
[1609498091697,5.18671439,29224.0,29210.0,0.00106423]
[1609498092339,2.08671439,29224.0,29210.0,0.00106423]
[1609498092738,3.63671439,29224.0,29210.0,0.00106423]
[1609498093139,2.08671439,29224.0,29210.0,0.00106423]
[1609498093540,1.07930747,29224.0,29210.0,0.00106423]
[1609498094741,1.07930747,29224.0,29223.0,0.0008]
[1609498095640,2.62930747,29224.0,29223.0,0.0008]
[1609498095941,0.83269747,29224.0,29223.0,0.0008]
[1609498096944,0.50830137,29224.0,29223.0,0.0008]
[1609498097141,0.32330137,29224.0,29223.0,0.0008]
[1609498098374,0.64769747,29224.0,29223.0,0.0008]
[1609498100274,0.32330137,29224.0,29223.0,0.0008]
[1609498105220,0.54330137,29224.0,29223.0,0.0008]
[1609498106021,0.86769747,29224.0,29223.0,0.0008]
[1609498106422,1.02376747,29224.0,29223.0,0.0008]
[1609498107723,0.86769747,29224.0,29223.0,0.0008]
[1609498110044,0.86769747,29224.0,29223.0,0.0003]
[1609498110244,1.04352392,29224.0,29223.0,0.0003]
[1609498110947,1.54330137,29224.0,29223.0,0.0003]
[1609498111146,1.93267782,29224.0,29223.0,0.0003]
[1609498111455,6.7,29223.0,29215.0,0.20536951]
[1609498111647,0.256405,29219.0,29213.0,0.2201]
[1609498111848,0.05136,29216.0,29213.0,0.2201]
[1609498112049,0.25075887,29215.0,29213.0,0.2201]
[1609498112248,0.57515497,29215.0,29213.0,0.2201]
[1609498112548,0.7990252,29215.0,29213.0,0.2201]
[1609498112845,0.79879921,29215.0,29213.0,0.2201]
[1609498113047,0.86569558,29215.0,29213.0,0.2201]
[1609498113534,0.64069558,29215.0,29213.0,0.2201]
[1609498114131,0.31629948,29215.0,29213.0,0.2201]
[1609498114335,3.61629948,29215.0,29213.0,0.2201]
[1609498114958,3.61629948,29215.0,29214.0,0.00116243]
[1609498115156,0.99129948,29215.0,29214.0,0.00116243]